fUSD/lending_fUSD_20260407
["ID","MTS","AMOUNT","RATE_DAILY","PERIOD"]
[419960737,1775557852007,-151.0,0.000146,2]
[419960738,1775557852017,-437.252556,0.000146,2]
[419960739,1775557852027,-437.252556,0.000146,2]
[419960740,1775557852038,-437.252547,0.000146,2]
[419960741,1775557852049,-151.0,0.000146,2]
[419960742,1775557852059,-152.519311,0.000146,2]
[419960743,1775557852070,-151.0,0.000146,2]
[419960744,1775557852080,-452.256919,0.000146,2]
[419960745,1775557852091,-452.256919,0.000146,2]
[419960746,1775557852102,-151.0,0.000146,2]
[419960747,1775557852113,-452.256919,0.000146,2]
[419960748,1775557852123,-188.472304,0.000146,2]
[419960749,1775557852133,-452.256919,0.000146,2]
[419960750,1775557852143,-165.467398,0.000146,2]
[419960751,1775557852153,-188.472304,0.000146,2]
[419960752,1775557852163,-151.0,0.000146,2]
[419960753,1775557852174,-1145.112529,0.000146,2]
[419960754,1775557852184,-165.467398,0.000146,2]
[419960755,1775557852195,-188.472304,0.000146,2]
[419960756,1775557852206,-151.0,0.000146,2]
[419960757,1775557852216,-1145.112529,0.000146,2]
[419960758,1775557852226,-165.467398,0.000146,2]
[419960759,1775557852236,-151.0,0.000146,2]
[419960760,1775557852246,-188.472303,0.000146,2]
[419960761,1775557852256,-151.0,0.000146,2]
[419960762,1775557852266,-1145.112529,0.000146,2]
[419960763,1775557852277,-165.4674,0.000146,2]
[419960764,1775557852287,-151.0,0.000146,2]
[419960765,1775557852298,-1145.112533,0.000146,2]
[419960766,1775557852308,-151.0,0.000146,2]
[419960767,1775557852318,-643.835703,0.000146,2]
[419960768,1775557852328,-1202.17752,0.000146,2]
[419960769,1775557852339,-1202.17752,0.000146,2]
[419960770,1775557852350,-151.0,0.000146,2]
[419960771,1775557852360,-643.835703,0.000146,2]
[419960772,1775557852371,-1202.17752,0.000146,2]
[419960773,1775557852380,-151.0,0.000146,2]
[419960774,1775557852391,-643.835703,0.000146,2]
[419960775,1775557852401,-151.0,0.000146,2]
[419960776,1775557852411,-1202.17752,0.000146,2]
[419960777,1775557852421,-151.0,0.000146,2]
[419960778,1775557852432,-209.479319,0.000146,2]
[419960779,1775557852442,-643.835699,0.000146,2]
[419960780,1775557852453,-155.416191,0.000146,2]
[419960781,1775557852463,-209.479319,0.000146,2]
[419960782,1775557852473,-209.479319,0.000146,2]
[419960783,1775557852483,-209.479322,0.000146,2]
[419960784,1775557852493,-151.0,0.000146,2]
[419960785,1775557852503,-151.0,0.000146,2]
[419960786,1775557852513,-151.0,0.000146,2]
[419960787,1775557852522,-151.0,0.000146,2]
[419960788,1775557852532,-151.0,0.000146,2]
[419960789,1775557852542,-151.0,0.000146,2]
[419960790,1775557852553,-151.0,0.000146,2]
[419960791,1775557852563,-151.0,0.000146,2]
[419960792,1775557852572,-151.0,0.000146,2]
[419960793,1775557852583,-182.426512,0.000146,2]
[419960794,1775557852592,-425.554164,0.000146,2]
[419960795,1775557852602,-182.426512,0.000146,2]
[419960796,1775557852612,-425.554164,0.000146,2]
[419960797,1775557852621,-182.426512,0.000146,2]
[419960798,1775557852631,-425.554164,0.000146,2]
[419960799,1775557852640,-151.0,0.000146,2]
[419960800,1775557852650,-182.426515,0.000146,2]
[419960801,1775557852660,-731.85744,0.000146,2]
[419960802,1775557852669,-425.554171,0.000146,2]
[419960803,1775557852678,-151.0,0.000146,2]
[419960804,1775557852688,-731.85744,0.000146,2]
[419960805,1775557852697,-731.85744,0.000146,2]
[419960806,1775557852706,-221.560918,0.000146,2]
[419960807,1775557852716,-731.85744751,0.000146,2]
[419960808,1775557852725,-221.560918,0.000146,2]
[419960809,1775557852734,-221.560918,0.000146,2]
[419960810,1775557852743,-221.560912,0.000146,2]
[419960811,1775557852753,-151.0,0.000146,2]
[419960812,1775557852763,-163.695412,0.000146,2]
[419960813,1775557853171,-163.695412,0.000146,2]
[419960814,1775557853188,-163.695412,0.000146,2]
[419960815,1775557853198,-163.695421,0.000146,2]
[419960816,1775557853208,-201.93286099,0.00014619,2]
[419960817,1775557853218,-985.75,0.00014658,2]
[419960818,1775557853228,-166.67,0.00014691,2]
[419960819,1775557853238,-157.0,0.000147,2]
[419960820,1775557853248,-2364.0,0.00014765,2]
[419960821,1775557853258,-3294.39771891,0.00014765,2]
[419960822,1775557853268,-150.0,0.00014769,2]
[419960823,1775557853277,-150.0,0.00014769,2]
[419960824,1775557853288,-150.0,0.00014769,2]
[419960825,1775557853297,-150.0,0.00014769,2]
[419960826,1775557853308,-150.0,0.00014769,2]
[419960827,1775557853318,-150.0,0.00014769,2]
[419960828,1775557853328,-1134.42279347,0.0001477,2]
[419960829,1775557853339,-177.1629059,0.00014775,2]
[419960830,1775557853349,-250.0,0.00014795,2]
[419960831,1775557853360,-785.92,0.00014795,2]
[419960832,1775557853371,-193.96292451,0.00014795,2]
[419960833,1775557853381,-500.0,0.00014796,2]
[419960834,1775557853392,-152.0,0.00014819,2]
[419960835,1775557853402,-500.0,0.00014864,2]
[419960836,1775557853413,-1264.0,0.00014865,2]
[419960837,1775557853423,-925.0,0.00014865,2]
[419960838,1775557853433,-1217.0,0.00014865,2]
[419960839,1775557853444,-1046.0,0.00014865,2]
[419960840,1775557853453,-152.0,0.0001487,2]
[419960841,1775557853464,-2070.7998187,0.00014876,2]
[419960842,1775557853475,-1000.0,0.00014897,7]
[419960843,1775557853485,-502.0,0.00014908,3]
[419960844,1775557853495,-456.34,0.00014932,2]
[419960845,1775557853506,-168.39,0.00014943,2]
[419960846,1775557853516,-200.0,0.0001495,2]
[419960847,1775557853527,-200.0,0.0001495,2]
[419960848,1775557853537,-200.0,0.0001495,2]
[419960849,1775557853547,-200.0,0.0001495,2]
[419960850,1775557853557,-800.0,0.0001495,2]
[419960851,1775557853566,-800.0,0.0001495,2]
[419960852,1775557853577,-200.0,0.0001495,2]
[419960853,1775557853587,-200.0,0.0001495,2]
[419960854,1775557853597,-200.0,0.0001495,2]
[419960855,1775557853608,-200.0,0.0001495,2]
[419960856,1775557853619,-200.0,0.0001495,2]
[419960857,1775557853628,-200.0,0.0001495,2]
[419960858,1775557853639,-800.0,0.0001495,2]
[419960859,1775557853650,-801.0,0.0001495,2]
[419960860,1775557853661,-200.0,0.0001495,2]
[419960861,1775557853670,-200.0,0.0001495,2]
[419960862,1775557853680,-200.0,0.0001495,2]
[419960863,1775557853690,-200.0,0.0001495,2]
[419960864,1775557853700,-200.0,0.0001495,2]
[419960865,1775557853710,-200.0,0.0001495,2]
[419960866,1775557853720,-200.0,0.0001495,2]
[419960867,1775557853730,-200.0,0.0001495,2]
[419960868,1775557853740,-200.0,0.0001495,2]
[419960869,1775557853750,-800.0,0.0001495,2]
[419960870,1775557853761,-496.0,0.0001495,2]
[419960871,1775557853771,-200.0,0.0001495,2]
[419960872,1775557853780,-800.0,0.0001495,2]
[419960873,1775557853790,-800.0,0.0001495,2]
[419960874,1775557853799,-800.0,0.0001495,2]
[419960875,1775557853810,-200.0,0.0001495,2]
[419960876,1775557853820,-200.0,0.0001495,2]
[419960877,1775557853830,-800.0,0.0001495,2]
[419960878,1775557853840,-800.0,0.0001495,2]
[419960879,1775557853850,-200.0,0.0001495,2]
[419960880,1775557853859,-800.0,0.0001495,2]
[419960881,1775557853869,-800.0,0.0001495,2]
[419960882,1775557853879,-800.0,0.0001495,2]
[419960883,1775557853888,-800.0,0.0001495,2]
[419960884,1775557853899,-800.0,0.0001495,2]
[419960885,1775557853908,-800.0,0.0001495,2]
[419960886,1775557853918,-800.0,0.0001495,2]
[419960887,1775557853929,-817.0,0.0001495,2]
[419960888,1775557853938,-200.0,0.0001495,2]
[419960889,1775557853948,-200.0,0.0001495,2]
[419960890,1775557853958,-200.0,0.0001495,2]
[419960891,1775557853967,-200.0,0.0001495,2]
[419960892,1775557853978,-200.0,0.0001495,2]
[419960893,1775557853989,-200.0,0.0001495,2]
[419960894,1775557853999,-200.0,0.0001495,2]
[419960895,1775557854009,-200.0,0.0001495,2]
[419960896,1775557854019,-200.0,0.0001495,2]
[419960897,1775557854029,-200.0,0.0001495,2]
[419960898,1775557854040,-200.0,0.0001495,2]
[419960899,1775557854050,-200.0,0.0001495,2]
[419960900,1775557854060,-200.0,0.0001495,2]
[419960901,1775557854069,-283.0,0.0001495,2]
[419960902,1775557854079,-800.0,0.0001495,2]
[419960903,1775557854089,-800.0,0.0001495,2]
[419960904,1775557854098,-800.0,0.0001495,2]
[419960905,1775557854108,-800.0,0.0001495,2]
[419960906,1775557854119,-800.0,0.0001495,2]
[419960907,1775557854129,-800.0,0.0001495,2]
[419960908,1775557854139,-800.0,0.0001495,2]
[419960909,1775557854149,-800.0,0.0001495,2]
[419960910,1775557854160,-800.0,0.0001495,2]
[419960911,1775557854169,-800.0,0.0001495,2]
[419960912,1775557854179,-800.0,0.0001495,2]
[419960913,1775557854189,-800.0,0.0001495,2]
[419960914,1775557854199,-800.0,0.0001495,2]
[419960915,1775557854210,-651.55960429,0.00014965,2]
[419960916,1775557854220,-285.04574743,0.00014965,2]
[419960917,1775557854229,-500.0,0.00014975,2]
[419960918,1775557854240,-500.0,0.00014975,2]
[419960919,1775557854250,-306482.73,0.00014976,2]
[419960920,1775557854261,-500.0,0.00014999,2]
[419960921,1775557854271,-500.0,0.00014999,2]
[419960922,1775557854282,-500.0,0.00014999,2]
[419960923,1775557854292,-195.76721195,0.00015,2]
[419960924,1775557854303,-1313.0,0.00015,2]
[419960925,1775557854313,-1000.0,0.00015,10]
[419960926,1775557854323,-1000.0,0.00015,10]
[419960927,1775557854334,-1000.0,0.00015,10]
[419960928,1775557854345,-1000.0,0.00015,10]
[419960929,1775557854355,-1000.0,0.00015,10]
[419960930,1775557854365,-1000.0,0.00015,10]
[419960931,1775557854376,-1000.0,0.00015,10]
[419960932,1775557854385,-1000.0,0.00015,10]
[419960933,1775557854395,-1000.0,0.00015,10]
[419960934,1775557854405,-1000.0,0.00015,10]
[419960935,1775557854415,-1000.0,0.00015,10]
[419960936,1775557854425,-1000.0,0.00015,10]
[419960937,1775557854436,-1000.0,0.00015,10]
[419960938,1775557854446,-1000.0,0.00015,10]
[419960939,1775557854456,-1000.0,0.00015,10]
[419960940,1775557854468,-1000.0,0.00015,10]
[419960941,1775557854480,-1000.0,0.00015,10]
[419960942,1775557854490,-1000.0,0.00015,10]
[419960943,1775557854501,-1000.0,0.00015,10]
[419960944,1775557854514,-1000.0,0.00015,10]
[419960945,1775557854525,-1000.0,0.00015,10]
[419960946,1775557854535,-1000.0,0.00015,10]
[419960947,1775557854547,-1000.0,0.00015,10]
[419960948,1775557854557,-1000.0,0.00015,10]
[419960949,1775557854568,-1000.0,0.00015,10]
[419960950,1775557854578,-1000.0,0.00015,10]
[419960951,1775557854588,-1000.0,0.00015,10]
[419960952,1775557854599,-1000.0,0.00015,10]
[419960953,1775557854609,-1000.0,0.00015,10]
[419960954,1775557854619,-1000.0,0.00015,10]
[419960955,1775557854629,-1000.0,0.00015,10]
[419960956,1775557854640,-1000.0,0.00015,10]
[419960957,1775557854650,-907.75,0.00015,10]
[419960958,1775557854660,-151.24938361,0.00015,7]
[419960959,1775557854672,-380.0,0.00015,2]
[419960960,1775557854682,-200.0,0.00015,2]
[419960961,1775557854693,-3881.0,0.00015,2]
[419960962,1775557854703,-300.0,0.00015,2]
[419960963,1775557854713,-220.0,0.00015,2]
[419960964,1775557854723,-1135.0,0.00015,2]
[419960965,1775557854733,-231.8719,0.00015,2]
[419960966,1775557854743,-166.67,0.00015009,2]
[419960967,1775557854752,-166.67,0.00015009,2]
[419960968,1775557854764,-1761.67,0.00015057,2]
[419960969,1775557854773,-152.0,0.00015061,6]
[419960970,1775557854783,-262.73,0.00015068,2]
[419960971,1775557854794,-420.55,0.00015068,2]
[419960972,1775557854804,-889.08,0.00015068,2]
[419960973,1775557854813,-800.0,0.00015068,2]
[419960974,1775557854823,-155.0,0.00015069,2]
[419960975,1775557854833,-1000.0,0.000151,7]
[419960976,1775557854843,-157.0,0.000151,2]
[419960977,1775557854853,-157.0,0.000151,2]
[419960978,1775557854863,-300.0,0.000151,2]
[419960979,1775557854873,-521.7990623,0.000151,2]
[419960980,1775557854883,-500.70648413,0.00015121,2]
[419960981,1775557854893,-506.45995198,0.00015121,2]
[419960982,1775557854903,-416.10355522,0.00015121,2]
[419960983,1775557854912,-569.14564558,0.00015121,2]
[419960984,1775557854921,-1002.96988739,0.00015121,2]
[419960985,1775557854932,-1000.0,0.00015121,2]
[419960986,1775557854942,-1000.0,0.00015121,2]
[419960987,1775557854951,-1000.0,0.00015121,2]
[419960988,1775557854961,-814.26887436,0.00015121,2]
[419960989,1775557854971,-1038.78941312,0.00015121,2]
[419960990,1775557854980,-1000.0,0.00015121,2]
[419960991,1775557854990,-1000.0,0.00015121,2]
[419960992,1775557855000,-1000.0,0.00015121,2]
[419960993,1775557855220,-1002.88471784,0.00015121,2]
[419960994,1775557855231,-502.12511013,0.00015121,2]
[419960995,1775557855242,-1000.0,0.00015121,2]
[419960996,1775557855252,-1000.88708388,0.00015121,2]
[419960997,1775557855262,-1000.0,0.00015121,2]
[419960998,1775557855272,-1000.0,0.00015121,2]
[419960999,1775557855282,-1000.0,0.00015121,2]
[419961000,1775557855292,-500.5910353,0.00015121,2]
[419961001,1775557855302,-930.82314799,0.00015121,2]
[419961002,1775557855312,-328.12560732,0.00015166,2]
[419961003,1775557855323,-344.08883034,0.00015167,2]
[419961004,1775557855333,-853.0,0.00015172,2]
[419961005,1775557855343,-195.0,0.00015172,2]
[419961006,1775557855354,-1512.0,0.00015172,2]
[419961007,1775557855365,-6712.0,0.00015172,2]
[419961008,1775557855374,-4311.0,0.00015172,2]
[419961009,1775557855385,-1685.0,0.00015172,2]
[419961010,1775557855395,-1136.0,0.00015172,2]
[419961011,1775557855406,-280.12374253,0.000152,2]
[419961012,1775557855415,-2000.0,0.000152,2]
[419961013,1775557855424,-932.76854861,0.00015257,30]
[419961014,1775557855434,-500.0,0.00015274,2]
[419961015,1775557855444,-500.0,0.00015274,2]
[419961016,1775557855454,-500.0,0.00015274,2]
[419961017,1775557855464,-286.56433231,0.00015274,2]
[419961018,1775557855475,-500.0,0.00015274,2]
[419961019,1775557855485,-500.0,0.00015274,2]
[419961020,1775557855495,-500.1890945,0.00015274,2]
[419961021,1775557855505,-2000.0,0.000153,2]
[419961022,1775557855515,-323.48813104,0.000153,2]
[419961023,1775557855525,-1258.2283068,0.000153,2]
[419961024,1775557855535,-787.68061251,0.000153,2]
[419961025,1775557855544,-258.95061625,0.000153,2]
[419961026,1775557855555,-3294.3977189,0.00015333,2]
[419961027,1775557855564,-1134.42279347,0.00015335,2]
[419961028,1775557855574,-162.0,0.0001536,2]
[419961029,1775557855585,-440.0,0.0001536,2]
[419961030,1775557855595,-2403.0,0.0001536,2]
[419961031,1775557855604,-2000.0,0.000154,2]
[419961032,1775557855614,-166.67,0.00015428,2]
[419961033,1775557855624,-2000.0,0.000155,2]
[419961034,1775557855634,-4000.0,0.00015507,2]
[419961035,1775557855643,-155.26329613,0.00015521,2]
[419961036,1775557855652,-1339.1096936,0.0001555,2]
[419961037,1775557855663,-2000.0,0.000156,2]
[419961038,1775557855672,-152.0,0.00015648,7]
[419961039,1775557855682,-261.43588665,0.00015648,5]
[419961040,1775557855692,-152.0,0.00015648,5]
[419961041,1775557855702,-500.0,0.00015668,2]
[419961042,1775557855712,-1500.0,0.00015668,2]
[419961043,1775557855723,-1252.56789885,0.00015668,2]
[419961044,1775557855732,-1283.10092568,0.00015668,2]
[419961045,1775557855742,-1500.0,0.00015668,2]
[419961046,1775557855752,-1098.50735331,0.00015668,2]
[419961047,1775557855763,-1000.0,0.00015668,2]
[419961048,1775557855772,-1501.06711075,0.00015668,2]
[419961049,1775557855783,-1500.0,0.00015668,2]
[419961050,1775557855793,-1500.0,0.00015668,2]
[419961051,1775557855803,-1501.32745538,0.00015668,2]
[419961052,1775557855813,-2000.0,0.000157,2]
[419961053,1775557855827,-152.19663666,0.00015753,2]
[419961054,1775557855836,-889.08,0.00015753,2]
[419961055,1775557855846,-500.0,0.00015773,2]
[419961056,1775557855856,-500.42792231,0.00015773,2]
[419961057,1775557855865,-3464.0,0.00015781,2]
[419961058,1775557855875,-623.71411993,0.0001579,2]
[419961059,1775557855884,-500.0,0.00015799,2]
[419961060,1775557855894,-500.0,0.00015799,2]
[419961061,1775557855903,-481602.91,0.000158,2]
[419961062,1775557855912,-30000.0,0.000158,2]
[419961063,1775557855922,-15272.69222344,0.000158,3]
[419961064,1775557857493,-339.29775482,0.000158,3]
[419961065,1775557857827,-258.658206,0.00013699,2]
[419961066,1775557857839,-151.0,0.00013699,2]
[419961067,1775557857853,-258.658206,0.00013699,2]
[419961068,1775557857865,-151.0,0.00013699,2]
[419961069,1775557857878,-86870.94729443,0.000158,3]
[419961070,1775557857890,-2000.0,0.000158,2]
[419961071,1775557857903,-152.06533096,0.00015805,2]
[419961072,1775557857915,-500.0,0.00015812,2]
[419961073,1775557857927,-500.0,0.00015812,2]
[419961074,1775557857939,-500.0,0.00015812,2]
[419961075,1775557857952,-500.0,0.00015812,2]
[419961076,1775557857963,-500.0,0.00015812,2]
[419961077,1775557857975,-502.0,0.00015812,4]
[419961078,1775557857987,-500.63697267,0.00015822,2]
[419961079,1775557858000,-1001.43599948,0.00015822,2]
[419961080,1775557858012,-500.0,0.00015822,2]
[419961081,1775557858025,-500.72229193,0.00015822,2]
[419961082,1775557858038,-296.53171878,0.00015825,2]
[419961083,1775557858051,-2010.51,0.00015862,2]
[419961084,1775557858063,-500.0,0.00015888,2]
[419961085,1775557858076,-500.0,0.00015888,2]
[419961086,1775557858088,-500.0,0.00015888,2]
[419961087,1775557858101,-500.0,0.00015888,2]
[419961088,1775557858113,-500.0,0.00015888,2]
[419961089,1775557858126,-2000.0,0.0001589,2]
[419961090,1775557858138,-1600.0,0.00015892,2]
[419961091,1775557858151,-4000.0,0.00015895,2]
[419961092,1775557858165,-998.0,0.000159,30]
[419961093,1775557858177,-181.04222704,0.000159,21]
[419961094,1775557858191,-5800.0,0.000159,2]
[419961095,1775557858204,-382.4116528,0.000159,2]
[419961096,1775557858218,-193.61265601,0.000159,3]
[419961097,1775557858231,-280.12374253,0.000159,2]
[419961098,1775557858244,-233.57251441,0.000159,2]
[419961099,1775557858255,-3294.3977189,0.000159,2]
[419961100,1775557858270,-1134.42279347,0.000159,2]
[419961101,1775557858282,-2000.0,0.000159,2]
[419961102,1775557858294,-500.0,0.00015901,2]
[419961103,1775557858307,-500.0,0.00015901,2]
[419961104,1775557858320,-500.0,0.00015901,2]
[419961105,1775557858333,-500.0,0.00015901,2]
[419961106,1775557858345,-500.0,0.00015901,2]
[419961107,1775557858357,-566.51,0.00015912,2]
[419961108,1775557858370,-166.67,0.00015949,2]
[419961109,1775557858383,-166.67,0.00015949,2]
[419961110,1775557858395,-5000.0,0.0001596,2]
[419961111,1775557858409,-3561.54,0.00015968,2]
[419961112,1775557858422,-500.0,0.0001599,2]
[419961113,1775557858434,-427.86655441,0.0001599,2]
[419961114,1775557858448,-623.71411993,0.0001599,2]
[419961115,1775557858460,-500.0,0.00015998,2]
[419961116,1775557858474,-500.0,0.00015998,2]
[419961117,1775557858487,-500.0,0.00015999,2]
[419961118,1775557858500,-500.0,0.00015999,2]
[419961119,1775557858513,-500.0,0.00015999,2]
[419961120,1775557858526,-500.0,0.00015999,2]
[419961121,1775557858538,-500.0,0.00015999,2]
[419961122,1775557858551,-500.0,0.00015999,2]
[419961123,1775557858564,-500.0,0.00015999,2]
[419961124,1775557858577,-500.0,0.00015999,2]
[419961125,1775557858589,-500.0,0.00015999,2]
[419961126,1775557858602,-500.0,0.00015999,2]
[419961127,1775557858616,-500.0,0.00015999,2]
[419961128,1775557858628,-500.0,0.00015999,2]
[419961129,1775557858642,-500.0,0.00015999,2]
[419961130,1775557858655,-500.0,0.00015999,2]
[419961131,1775557858669,-500.0,0.00015999,2]
[419961132,1775557858682,-500.0,0.00015999,2]
[419961133,1775557858695,-500.0,0.00015999,2]
[419961134,1775557858708,-500.0,0.00015999,2]
[419961135,1775557858720,-500.0,0.00015999,2]
[419961136,1775557858733,-500.0,0.00015999,2]
[419961137,1775557858746,-500.0,0.00015999,2]
[419961138,1775557858760,-500.0,0.00015999,2]
[419961139,1775557858773,-500.0,0.00015999,2]
[419961140,1775557858787,-500.0,0.00015999,2]
[419961141,1775557858799,-500.0,0.00015999,2]
[419961142,1775557858812,-500.0,0.00015999,2]
[419961143,1775557858824,-500.0,0.00015999,2]
[419961144,1775557858836,-500.0,0.00015999,2]
[419961145,1775557858849,-500.0,0.00015999,2]
[419961146,1775557858861,-500.0,0.00015999,2]
[419961147,1775557858873,-500.0,0.00015999,2]
[419961148,1775557858886,-500.0,0.00015999,2]
[419961149,1775557858898,-500.0,0.00015999,2]
[419961150,1775557858911,-500.0,0.00015999,2]
[419961151,1775557858924,-370.44985919,0.00015999,2]
[419961152,1775557858938,-500.0,0.00015999,2]
[419961153,1775557858950,-57636.64122845,0.00015999,2]
[419961154,1775557858963,-500.0,0.00015999,2]
[419961155,1775557858974,-500.0,0.00015999,2]
[419961156,1775557858987,-500.0,0.00015999,2]
[419961157,1775557859001,-500.0,0.00015999,2]
[419961158,1775557859012,-500.0,0.00015999,2]
[419961159,1775557859025,-500.0,0.00015999,2]
[419961160,1775557859038,-500.0,0.00015999,2]
[419961161,1775557859051,-347.52385534,0.00015999,2]
[419961162,1775557859063,-500.0,0.00015999,2]
[419961163,1775557859075,-500.0,0.00015999,2]
[419961164,1775557859088,-500.0,0.00015999,2]
[419961165,1775557859101,-500.0,0.00015999,2]
[419961166,1775557860363,-500.0,0.00015999,2]
[419961167,1775557860410,-500.0,0.00015999,2]
[419961168,1775557860441,-500.0,0.00015999,2]
[419961169,1775557860468,-500.0,0.00015999,2]
[419961170,1775557860491,-496.89004716,0.00015999,2]
[419961171,1775557860502,-453660.98352935,0.00016,2]
[419961172,1775557860512,-330549.79535968,0.00016,2]
[419961173,1775557860733,-4194.40279915,0.00011865,2]
[419961174,1775557860757,-1827.59720085,0.00011865,2]
[419961175,1775557860767,-258.658206,0.00013699,2]
[419961176,1775557860777,-258.658206,0.00013699,2]
[419961177,1775557860787,-258.658206,0.00013816,2]
[419961178,1775557860797,-151.0,0.00013816,2]
[419961179,1775557860806,-258.658206,0.00013816,2]
[419961180,1775557860816,-258.658206,0.000146,2]
[419961181,1775557860826,-258.658206,0.000146,2]
[419961182,1775557860835,-356.33953459,0.00014865,2]
[419961183,1775557860952,-1339.59694707,0.00011231,2]
[419961184,1775557860962,-258.658206,0.00013699,2]
[419961185,1775557860972,-258.658206,0.00013699,2]
[419961186,1775557860981,-258.658206,0.00013816,2]
[419961187,1775557860991,-258.658206,0.000146,2]
[419961188,1775557861000,-5665.66046541,0.00014865,2]
[419961189,1775557861009,-258.658206,0.00014976,2]
[419961190,1775557861019,-258.658206,0.00014976,2]
[419961191,1775557861029,-258.658206,0.00014976,2]
[419961192,1775557861039,-11892.63307038,0.00016,2]
[419961193,1775557861059,-258.658206,0.00013699,2]
[419961194,1775557861069,-1093.341794,0.00016,2]
[419961195,1775557861081,-5820.05819532,0.00016,2]
[419961196,1775557861098,-1040.42748519,0.00016,2]
[419961197,1775557861110,-1370.5903014,0.00016,2]
[419961227,1775558837814,1400.0,0.00014247,120]
[419961228,1775558838562,1400.0,0.00014247,120]
[419961229,1775558839317,1267.0,0.00014247,120]
[419961231,1775558894379,500.0,0.00014485,120]
[419961232,1775558895227,500.0,0.00014485,120]
[419961233,1775558896009,429.0,0.00014485,120]
[419961234,1775558985896,-300.0,9.835e-05,2]
[419961235,1775558985921,-150.0,9.835e-05,2]
[419961236,1775558985945,-300.0,9.835e-05,2]
[419961237,1775558985971,-49250.0,9.836e-05,2]
[419961238,1775559027403,-5907.03,9.836e-05,2]
[419961239,1775559027427,-200.0,9.989e-05,2]
[419961240,1775559027451,-200.0,9.989e-05,2]
[419961241,1775559027475,-200.0,9.989e-05,2]
[419961242,1775559027499,-1200.0,0.00010577,2]
[419961243,1775559027535,-150.0,0.00010578,2]
[419961244,1775559027563,-150.0,0.00010578,2]
[419961245,1775559027589,-150.0,0.00010578,2]
[419961246,1775559027614,-150.0,0.00010578,2]
[419961247,1775559027640,-150.0,0.00010578,2]
[419961248,1775559027665,-150.0,0.00010578,2]
[419961249,1775559027690,-150.0,0.00010578,2]
[419961250,1775559027714,-150.0,0.00010578,2]
[419961251,1775559027739,-150.0,0.00010578,2]
[419961252,1775559027763,-150.0,0.00010578,2]
[419961253,1775559027788,-150.0,0.00010578,2]
[419961254,1775559027814,-150.0,0.00010578,2]
[419961255,1775559027841,-150.0,0.000106,2]
[419961277,1775559038417,-150.0,0.00010606,2]
[419961278,1775559038429,-150.0,0.00010619,2]
[419961279,1775559038441,-150.0,0.0001062,2]
[419961280,1775559038453,-69.74024567,0.00010627,2]
[419961281,1775559038468,-80.25975433,0.00010627,2]
[419961282,1775559038479,-150.0,0.00010629,2]
[419961283,1775559038492,-150.0,0.00010632,2]
[419961284,1775559038503,-150.0,0.00010634,2]
[419961285,1775559038515,-170.75,0.00010655,2]
[419961286,1775559038526,-150.0,0.00010659,2]
[419961287,1775559038538,-150.0,0.00010662,2]